fUST/lending_fUST_20250513
["ID","MTS","AMOUNT","RATE_DAILY","PERIOD"]
[360882757,1747098646907,-400.0,0.00019452,2]
[360882758,1747098646918,-292.49882101,0.00019452,2]
[360882759,1747098646928,-400.0,0.00019452,2]
[360882760,1747098646938,-206.702753,0.00019452,2]
[360882761,1747098646948,-400.0,0.00019452,2]
[360882762,1747098646959,-486.92,0.00019452,2]
[360882763,1747098646970,-206.702753,0.00019452,2]
[360882764,1747098646980,-206.702753,0.00019452,2]
[360882765,1747098646990,-206.702753,0.00019452,2]
[360882766,1747098647001,-206.702753,0.00019452,2]
[360882767,1747098647011,-206.702753,0.00019452,2]
[360882768,1747098647021,-206.702753,0.00019452,2]
[360882769,1747098647031,-206.702753,0.00019452,2]
[360882770,1747098647042,-206.702753,0.00019452,2]
[360882771,1747098647053,-206.702753,0.00019452,2]
[360882772,1747098647063,-206.702753,0.00019452,2]
[360882773,1747098647073,-206.702746,0.00019452,2]
[360882774,1747098647083,-400.0,0.00019452,2]
[360882775,1747098647093,-470.33,0.00019452,2]
[360882776,1747098647104,-400.0,0.00019452,2]
[360882777,1747098647114,-400.0,0.00019452,2]
[360882778,1747098647124,-400.0,0.00019452,2]
[360882779,1747098647134,-400.0,0.00019452,2]
[360882780,1747098647143,-400.0,0.00019452,2]
[360882781,1747098647153,-690.29,0.00019452,2]
[360882782,1747098647163,-400.0,0.00019452,2]
[360882783,1747098647173,-1021.65,0.00019452,2]
[360882784,1747098647182,-400.0,0.00019452,2]
[360882785,1747098647192,-400.0,0.00019452,2]
[360882786,1747098647206,-400.0,0.00019452,2]
[360882787,1747098647216,-711.23,0.00019452,2]
[360882788,1747098647226,-567.33,0.00019452,2]
[360882789,1747098647235,-400.0,0.00019452,2]
[360882790,1747098647246,-298.320465,0.00019452,2]
[360882791,1747098647255,-298.320467,0.00019452,2]
[360882792,1747098647266,-400.0,0.00019452,2]
[360882793,1747098647275,-400.0,0.00019452,2]
[360882794,1747098647286,-400.0,0.00019452,2]
[360882795,1747098647295,-523.45,0.00019452,2]
[360882796,1747098647305,-400.0,0.00019452,2]
[360882797,1747098647315,-400.0,0.00019452,2]
[360882798,1747098647325,-400.0,0.00019452,2]
[360882799,1747098647335,-400.0,0.00019452,2]
[360882800,1747098647344,-1967.01,0.00019452,2]
[360882801,1747098647357,-432.89,0.00019452,2]
[360882802,1747098647367,-1235.04,0.00019452,2]
[360882803,1747098647377,-400.0,0.00019452,2]
[360882804,1747098647387,-1503.78,0.00019452,2]
[360882805,1747098647397,-400.0,0.00019452,2]
[360882806,1747098647407,-400.0,0.00019452,2]
[360882807,1747098647417,-151.0,0.00019452,2]
[360882808,1747098647427,-245.14008825,0.00019452,2]
[360882809,1747098647438,-151.0,0.00019452,2]
[360882810,1747098647447,-151.0,0.00019452,2]
[360882811,1747098647457,-151.0,0.00019452,2]
[360882812,1747098647467,-246.385038,0.00019452,2]
[360882813,1747098647477,-400.0,0.00019452,2]
[360882814,1747098647487,-400.0,0.00019452,2]
[360882815,1747098647497,-400.0,0.00019452,2]
[360882816,1747098647507,-400.0,0.00019452,2]
[360882817,1747098647516,-624.49,0.00019452,2]
[360882818,1747098647526,-561.08,0.00019452,2]
[360882819,1747098647714,-2397.02,0.00019452,2]
[360882820,1747098647724,-400.67,0.00019452,2]
[360882821,1747098647733,-400.0,0.00019452,2]
[360882822,1747098647742,-400.0,0.00019452,2]
[360882823,1747098647751,-400.0,0.00019452,2]
[360882824,1747098647761,-1746.08,0.00019452,2]
[360882825,1747098647770,-151.0,0.00019452,2]
[360882826,1747098647780,-151.0,0.00019452,2]
[360882827,1747098647789,-151.0,0.00019452,2]
[360882828,1747098647800,-151.0,0.00019452,2]
[360882829,1747098647809,-151.0,0.00019452,2]
[360882830,1747098647819,-400.0,0.00019452,2]
[360882831,1747098647829,-151.0,0.00019452,2]
[360882832,1747098647838,-1257.12,0.00019452,2]
[360882833,1747098647847,-450.22,0.00019452,2]
[360882834,1747098647857,-401.38330337,0.00019452,2]
[360882835,1747098647866,-400.0,0.00019452,2]
[360882836,1747098647875,-691.02,0.00019452,2]
[360882837,1747098647884,-400.0,0.00019452,2]
[360882838,1747098647893,-411.86,0.00019452,2]
[360882839,1747098647902,-1116.89,0.00019452,2]
[360882840,1747098647912,-645.32,0.00019452,2]
[360882841,1747098647921,-400.0,0.00019452,2]
[360882842,1747098647930,-439.24129884,0.00019452,2]
[360882843,1747098647940,-400.0,0.00019452,2]
[360882844,1747098647949,-400.0,0.00019452,2]
[360882845,1747098647959,-483.03,0.00019452,2]
[360882846,1747098647968,-400.0,0.00019452,2]
[360882847,1747098647977,-400.0,0.00019452,2]
[360882848,1747098647988,-400.0,0.00019452,2]
[360882849,1747098647998,-400.0,0.00019452,2]
[360882850,1747098648007,-636.38,0.00019452,2]
[360882851,1747098648016,-400.0,0.00019452,2]
[360882852,1747098648025,-500.0,0.00019452,2]
[360882853,1747098648035,-1313.76,0.00019452,2]
[360882854,1747098648044,-548.73,0.00019452,2]
[360882855,1747098648053,-400.0,0.00019452,2]
[360882856,1747098648062,-400.0,0.00019452,2]
[360882857,1747098648071,-802.84,0.00019452,2]
[360882858,1747098648080,-687.8,0.00019452,2]
[360882859,1747098648089,-400.0,0.00019452,2]
[360882860,1747098648099,-400.0,0.00019452,2]
[360882861,1747098648109,-400.0,0.00019452,2]
[360882862,1747098648119,-400.0,0.00019452,2]
[360882863,1747098648128,-468.16,0.00019452,2]
[360882864,1747098648137,-400.0,0.00019452,2]
[360882865,1747098648147,-400.0,0.00019452,2]
[360882866,1747098648155,-400.0,0.00019452,2]
[360882867,1747098648166,-400.0,0.00019452,2]
[360882868,1747098648175,-400.0,0.00019452,2]
[360882869,1747098648184,-400.0,0.00019452,2]
[360882870,1747098648193,-245.872937,0.00019452,2]
[360882871,1747098648203,-438.64,0.00019452,2]
[360882872,1747098648212,-245.872937,0.00019452,2]
[360882873,1747098648221,-245.872937,0.00019452,2]
[360882874,1747098648230,-400.0,0.00019452,2]
[360882875,1747098648239,-245.872937,0.00019452,2]
[360882876,1747098648248,-400.0,0.00019452,2]
[360882877,1747098648258,-245.872937,0.00019452,2]
[360882878,1747098648267,-245.872937,0.00019452,2]
[360882879,1747098648276,-706.39,0.00019452,2]
[360882880,1747098648285,-400.0,0.00019452,2]
[360882881,1747098648294,-245.872937,0.00019452,2]
[360882882,1747098648303,-245.872937,0.00019452,2]
[360882883,1747098648312,-245.872937,0.00019452,2]
[360882884,1747098648322,-245.872937,0.00019452,2]
[360882885,1747098648332,-245.872937,0.00019452,2]
[360882886,1747098648342,-400.0,0.00019452,2]
[360882887,1747098648351,-400.0,0.00019452,2]
[360882888,1747098648362,-245.872945,0.00019452,2]
[360882889,1747098648372,-834.0,0.00019452,2]
[360882890,1747098648382,-238.85757889,0.00019452,2]
[360882891,1747098648392,-1370.69,0.00019452,2]
[360882892,1747098648401,-2237.69,0.00019452,2]
[360882893,1747098648410,-400.0,0.00019452,2]
[360882894,1747098648420,-400.0,0.00019452,2]
[360882895,1747098648429,-400.0,0.00019452,2]
[360882896,1747098648439,-400.0,0.00019452,2]
[360882897,1747098648449,-968.37,0.00019452,2]
[360882898,1747098648458,-400.0,0.00019452,2]
[360882899,1747098648467,-400.0,0.00019452,2]
[360882900,1747098648477,-1235.31,0.00019452,2]
[360882901,1747098648486,-400.0,0.00019452,2]
[360882902,1747098648496,-231.053737,0.00019452,2]
[360882903,1747098648506,-231.053737,0.00019452,2]
[360882904,1747098648515,-231.053737,0.00019452,2]
[360882905,1747098648525,-231.053737,0.00019452,2]
[360882906,1747098648534,-231.053737,0.00019452,2]
[360882907,1747098648543,-231.053737,0.00019452,2]
[360882908,1747098648552,-400.0,0.00019452,2]
[360882909,1747098648562,-400.0,0.00019452,2]
[360882910,1747098648571,-231.053737,0.00019452,2]
[360882911,1747098648580,-639.59,0.00019452,2]
[360882912,1747098648590,-400.0,0.00019452,2]
[360882913,1747098648599,-231.053737,0.00019452,2]
[360882914,1747098648615,-231.053737,0.00019452,2]
[360882915,1747098648627,-231.053737,0.00019452,2]
[360882916,1747098648637,-231.053737,0.00019452,2]
[360882917,1747098648646,-231.053743,0.00019452,2]
[360882918,1747098648656,-400.0,0.00019452,2]
[360882919,1747098648666,-400.0,0.00019452,2]
[360882920,1747098648677,-1027.88,0.00019452,2]
[360882921,1747098648687,-400.0,0.00019452,2]
[360882922,1747098648698,-400.0,0.00019452,2]
[360882923,1747098648707,-400.0,0.00019452,2]
[360882924,1747098648717,-400.0,0.00019452,2]
[360882925,1747098648727,-1052.08,0.00019452,2]
[360882926,1747098648736,-400.0,0.00019452,2]
[360882927,1747098648746,-400.0,0.00019452,2]
[360882928,1747098648755,-400.0,0.00019452,2]
[360882929,1747098648764,-400.0,0.00019452,2]
[360882930,1747098648779,-700.094129,0.00019452,2]
[360882931,1747098648788,-700.094129,0.00019452,2]
[360882932,1747098648798,-916.47,0.00019452,2]
[360882933,1747098648807,-700.094129,0.00019452,2]
[360882934,1747098648817,-700.094129,0.00019452,2]
[360882935,1747098648827,-700.094129,0.00019452,2]
[360882936,1747098648836,-400.0,0.00019452,2]
[360882937,1747098648846,-487.36,0.00019452,2]
[360882938,1747098648856,-700.094129,0.00019452,2]
[360882939,1747098648866,-400.0,0.00019452,2]
[360882940,1747098648875,-700.094129,0.00019452,2]
[360882941,1747098648884,-700.094129,0.00019452,2]
[360882942,1747098648894,-700.094129,0.00019452,2]
[360882943,1747098648903,-700.094129,0.00019452,2]
[360882944,1747098648913,-700.094129,0.00019452,2]
[360882945,1747098648922,-671.92,0.00019452,2]
[360882946,1747098648931,-400.0,0.00019452,2]
[360882947,1747098648940,-151.0,0.00019452,2]
[360882948,1747098648950,-700.094132,0.00019452,2]
[360882949,1747098648959,-269.615783,0.00019452,2]
[360882950,1747098648968,-400.0,0.00019452,2]
[360882951,1747098648977,-269.615783,0.00019452,2]
[360882952,1747098648986,-269.615783,0.00019452,2]
[360882953,1747098648996,-269.615783,0.00019452,2]
[360882954,1747098649005,-269.615783,0.00019452,2]
[360882955,1747098649015,-269.615783,0.00019452,2]
[360882956,1747098649024,-655.61,0.00019452,2]
[360882957,1747098649034,-269.615783,0.00019452,2]
[360882958,1747098649044,-400.0,0.00019452,2]
[360882959,1747098649054,-269.615783,0.00019452,2]
[360882960,1747098649063,-400.0,0.00019452,2]
[360882961,1747098649074,-400.0,0.00019452,2]
[360882962,1747098649083,-269.615783,0.00019452,2]
[360882963,1747098649093,-269.615783,0.00019452,2]
[360882964,1747098649102,-400.0,0.00019452,2]
[360882965,1747098649113,-1213.77,0.00019452,2]
[360882966,1747098649122,-269.615783,0.00019452,2]
[360882967,1747098649131,-269.615779,0.00019452,2]
[360882968,1747098649141,-673.81,0.00019452,2]
[360882969,1747098649150,-400.0,0.00019452,2]
[360882970,1747098649160,-2016.99,0.00019452,2]
[360882971,1747098649169,-400.0,0.00019452,2]
[360882972,1747098649178,-400.0,0.00019452,2]
[360882973,1747098649188,-820.13,0.00019452,2]
[360882974,1747098649197,-400.0,0.00019452,2]
[360882975,1747098649206,-400.0,0.00019452,2]
[360882976,1747098649216,-1305.22,0.00019452,2]
[360882977,1747098649226,-400.0,0.00019452,2]
[360882978,1747098649235,-400.0,0.00019452,2]
[360882979,1747098649246,-400.0,0.00019452,2]
[360882980,1747098649256,-529.53,0.00019452,2]
[360882981,1747098649265,-400.0,0.00019452,2]
[360882982,1747098649275,-400.0,0.00019452,2]
[360882983,1747098649284,-400.0,0.00019452,2]
[360882984,1747098649294,-645.29,0.00019452,2]
[360882985,1747098649303,-1061.53,0.00019452,2]
[360882986,1747098649312,-2103.18,0.00019452,2]
[360882987,1747098649322,-400.0,0.00019452,2]
[360882988,1747098649331,-400.0,0.00019452,2]
[360882989,1747098649340,-909.02,0.00019452,2]
[360882990,1747098649350,-400.0,0.00019452,2]
[360882991,1747098649361,-400.0,0.00019452,2]
[360882992,1747098649370,-400.0,0.00019452,2]
[360882993,1747098649380,-400.0,0.00019452,2]
[360882994,1747098649391,-594.41,0.00019452,2]
[360882995,1747098649400,-2696.87,0.00019452,2]
[360882996,1747098649409,-400.0,0.00019452,2]
[360882997,1747098649419,-1546.68,0.00019452,2]
[360882998,1747098649429,-939.14,0.00019452,2]
[360882999,1747098649439,-400.0,0.00019452,2]
[360883000,1747098649448,-1016.88,0.00019452,2]
[360883001,1747098649458,-400.0,0.00019452,2]
[360883002,1747098649468,-400.0,0.00019452,2]
[360883003,1747098649477,-400.0,0.00019452,2]
[360883004,1747098649487,-400.0,0.00019452,2]
[360883005,1747098649497,-400.0,0.00019452,2]
[360883006,1747098649507,-572.46,0.00019452,2]
[360883007,1747098649517,-400.0,0.00019452,2]
[360883008,1747098649526,-400.0,0.00019452,2]
[360883009,1747098649536,-400.0,0.00019452,2]
[360883010,1747098649545,-485.73,0.00019452,2]
[360883011,1747098649555,-400.0,0.00019452,2]
[360883012,1747098649565,-1320.61,0.00019452,2]
[360883013,1747098649575,-400.0,0.00019452,2]
[360883014,1747098649585,-400.0,0.00019452,2]
[360883015,1747098649594,-618.95,0.00019452,2]
[360883016,1747098649604,-400.0,0.00019452,2]
[360883017,1747098649615,-400.0,0.00019452,2]
[360883018,1747098649626,-400.0,0.00019452,2]
[360883019,1747098649636,-400.0,0.00019452,2]
[360883020,1747098649645,-683.38,0.00019452,2]
[360883021,1747098649654,-400.0,0.00019452,2]
[360883022,1747098649664,-477.64,0.00019452,2]
[360883023,1747098649674,-400.0,0.00019452,2]
[360883024,1747098649683,-151.0,0.00019452,2]
[360883025,1747098649693,-400.0,0.00019452,2]
[360883026,1747098649703,-151.0,0.00019452,2]
[360883027,1747098649712,-1137.63,0.00019452,2]
[360883028,1747098649721,-298.734843,0.00019452,2]
[360883029,1747098649730,-1157.55,0.00019452,2]
[360883030,1747098649739,-400.0,0.00019452,2]
[360883031,1747098649748,-748.45,0.00019452,2]
[360883032,1747098649758,-758.33,0.00019452,2]
[360883033,1747098649767,-1000.0,0.00019452,2]
[360883034,1747098649776,-511.28,0.00019452,2]
[360883035,1747098649785,-605.08,0.00019452,2]
[360883036,1747098649795,-400.0,0.00019452,2]
[360883037,1747098649804,-400.0,0.00019452,2]
[360883038,1747098649813,-400.0,0.00019452,2]
[360883039,1747098649822,-400.0,0.00019452,2]
[360883040,1747098649832,-358.0,0.00019452,2]
[360883041,1747098649841,-632.59,0.00019452,2]
[360883042,1747098649851,-400.0,0.00019452,2]
[360883043,1747098649860,-400.0,0.00019452,2]
[360883044,1747098649871,-2571.49,0.00019452,2]
[360883045,1747098649880,-438.72,0.00019452,2]
[360883046,1747098649889,-400.0,0.00019452,2]
[360883047,1747098649899,-639.07,0.00019452,2]
[360883048,1747098649908,-487.0002271,0.00019452,2]
[360883049,1747098649917,-400.0,0.00019452,2]
[360883050,1747098649927,-753.58,0.00019452,2]
[360883051,1747098649936,-1012.55,0.00019452,2]
[360883052,1747098649945,-400.0,0.00019452,2]
[360883053,1747098649954,-400.0,0.00019452,2]
[360883054,1747098649964,-1417.3,0.00019452,2]
[360883055,1747098649974,-400.0,0.00019452,2]
[360883056,1747098649984,-400.0,0.00019452,2]
[360883057,1747098649993,-400.0,0.00019452,2]
[360883058,1747098650002,-539.12081235,0.00019452,2]
[360883059,1747098650011,-400.0,0.00019452,2]
[360883060,1747098650021,-928.93,0.00019452,2]
[360883061,1747098650029,-400.0,0.00019452,2]
[360883062,1747098650038,-1114.67,0.00019452,2]
[360883063,1747098650047,-400.0,0.00019452,2]
[360883064,1747098650057,-400.0,0.00019452,2]
[360883065,1747098650067,-400.0,0.00019452,2]
[360883066,1747098650078,-400.0,0.00019452,2]
[360883067,1747098650087,-400.0,0.00019452,2]
[360883068,1747098650097,-553.33,0.00019452,2]
[360883069,1747098650106,-400.0,0.00019452,2]
[360883070,1747098650115,-400.0,0.00019452,2]
[360883071,1747098650124,-400.0,0.00019452,2]
[360883072,1747098650133,-400.0,0.00019452,2]
[360883073,1747098650142,-491.85,0.00019452,2]
[360883074,1747098650150,-448.59,0.00019452,2]
[360883075,1747098650159,-400.0,0.00019452,2]
[360883076,1747098650168,-729.87,0.00019452,2]
[360883077,1747098650177,-400.0,0.00019452,2]
[360883078,1747098650185,-400.0,0.00019452,2]
[360883079,1747098650195,-400.0,0.00019452,2]
[360883080,1747098650203,-1404.39,0.00019452,2]
[360883081,1747098650212,-400.0,0.00019452,2]
[360883082,1747098650221,-1171.69,0.00019452,2]
[360883083,1747098650230,-400.0,0.00019452,2]
[360883084,1747098650239,-416.33006213,0.00019452,2]
[360883085,1747098650249,-692.47,0.00019452,2]
[360883086,1747098650258,-400.0,0.00019452,2]
[360883087,1747098650267,-400.0,0.00019452,2]
[360883088,1747098650276,-400.0,0.00019452,2]
[360883089,1747098650285,-410.7449076,0.00019452,2]
[360883090,1747098650294,-1362.85,0.00019452,2]
[360883091,1747098650303,-548.82,0.00019452,2]
[360883092,1747098650312,-400.0,0.00019452,2]
[360883093,1747098650321,-400.0,0.00019452,2]
[360883094,1747098650330,-400.0,0.00019452,2]
[360883095,1747098650339,-468.93,0.00019452,2]
[360883096,1747098650348,-455.7,0.00019452,2]
[360883097,1747098650359,-1500.0,0.00019452,7]
[360883098,1747098650368,-1500.0,0.00019452,7]
[360883099,1747098650377,-1500.0,0.00019452,7]
[360883100,1747098650386,-400.0,0.00019452,2]
[360883101,1747098650396,-288.57678,0.00019452,7]
[360883102,1747098650405,-400.0,0.00019452,2]
[360883103,1747098650414,-482.62,0.00019452,2]
[360883104,1747098650423,-400.0,0.00019452,2]
[360883105,1747098650433,-400.0,0.00019452,2]
[360883106,1747098650442,-3029.53,0.00019452,2]
[360883107,1747098650451,-938.16,0.00019452,2]
[360883108,1747098650461,-400.0,0.00019452,2]
[360883109,1747098650471,-219.405713,0.00019452,2]
[360883110,1747098650480,-219.405713,0.00019452,2]
[360883111,1747098650489,-219.405713,0.00019452,2]
[360883112,1747098650498,-219.405713,0.00019452,2]
[360883113,1747098650508,-219.405713,0.00019452,2]
[360883114,1747098650517,-219.405713,0.00019452,2]
[360883115,1747098650526,-400.0,0.00019452,2]
[360883116,1747098650535,-400.0,0.00019452,2]
[360883117,1747098650545,-3234.33,0.00019452,2]
[360883118,1747098650554,-219.405713,0.00019452,2]
[360883119,1747098650563,-219.405713,0.00019452,2]
[360883120,1747098650572,-219.405713,0.00019452,2]
[360883121,1747098650582,-219.405713,0.00019452,2]
[360883122,1747098650591,-219.405713,0.00019452,2]
[360883123,1747098650600,-219.405706,0.00019452,2]
[360883124,1747098650612,-400.0,0.00019452,2]
[360883125,1747098650625,-1483.88,0.00019452,2]
[360883126,1747098650634,-420.01262633,0.00019452,2]
[360883127,1747098650643,-739.85,0.00019452,2]
[360883128,1747098650652,-507.42,0.00019452,2]
[360883129,1747098650661,-400.0,0.00019452,2]
[360883130,1747098650670,-2088.01,0.00019452,2]
[360883131,1747098650679,-407.34,0.00019452,2]
[360883132,1747098650687,-400.0,0.00019452,2]
[360883133,1747098650700,-400.0,0.00019452,2]
[360883134,1747098650709,-400.0,0.00019452,2]
[360883135,1747098650718,-2448.25,0.00019452,2]
[360883136,1747098650727,-400.0,0.00019452,2]
[360883137,1747098650736,-487.98118317,0.00019452,2]
[360883138,1747098650745,-917.65,0.00019452,2]
[360883139,1747098650754,-1915.69,0.00019452,2]
[360883140,1747098650763,-400.0,0.00019452,2]
[360883141,1747098650772,-3774.44,0.00019452,2]
[360883142,1747098650781,-400.0,0.00019452,2]
[360883143,1747098650790,-400.0,0.00019452,2]
[360883144,1747098650799,-400.0,0.00019452,2]
[360883145,1747098650808,-400.0,0.00019452,2]
[360883146,1747098650817,-400.0,0.00019452,2]
[360883147,1747098650826,-400.0,0.00019452,2]
[360883148,1747098650836,-400.0,0.00019452,2]
[360883149,1747098650845,-400.0,0.00019452,2]
[360883150,1747098650856,-2456.77,0.00019452,2]
[360883151,1747098650865,-400.0,0.00019452,2]
[360883152,1747098651047,-400.0,0.00019452,2]
[360883153,1747098651057,-400.0,0.00019452,2]
[360883154,1747098651067,-422.02,0.00019452,2]
[360883155,1747098651076,-400.0,0.00019452,2]
[360883156,1747098651085,-151.0,0.00019452,2]
[360883157,1747098651094,-350.64481526,0.00019452,2]
[360883158,1747098651104,-1580.635233,0.00019452,2]
[360883159,1747098651114,-400.0,0.00019452,2]
[360883160,1747098651123,-1580.635233,0.00019452,2]
[360883161,1747098651132,-1580.635233,0.00019452,2]
[360883162,1747098651141,-1580.635233,0.00019452,2]
[360883163,1747098651150,-1580.635233,0.00019452,2]
[360883164,1747098651159,-952.62,0.00019452,2]
[360883165,1747098651169,-1580.635233,0.00019452,2]
[360883166,1747098651178,-1085.29,0.00019452,2]
[360883167,1747098651187,-1580.635233,0.00019452,2]
[360883168,1747098651197,-1580.635233,0.00019452,2]
[360883169,1747098651206,-1580.635233,0.00019452,2]
[360883170,1747098651215,-1580.635233,0.00019452,2]
[360883171,1747098651224,-1580.635233,0.00019452,2]
[360883172,1747098651233,-775.51,0.00019452,2]
[360883173,1747098651243,-400.0,0.00019452,2]
[360883174,1747098651253,-1580.635238,0.00019452,2]
[360883175,1747098651262,-2348.25,0.00019452,2]
[360883176,1747098651271,-400.0,0.00019452,2]
[360883177,1747098651280,-1316.53,0.00019452,2]
[360883178,1747098651290,-400.0,0.00019452,2]
[360883179,1747098651299,-729.25,0.00019452,2]
[360883180,1747098651308,-416.14,0.00019452,2]
[360883181,1747098651317,-400.0,0.00019452,2]
[360883182,1747098651327,-1578.15,0.00019452,2]
[360883183,1747098651336,-400.0,0.00019452,2]
[360883184,1747098651346,-400.0,0.00019452,2]
[360883185,1747098651355,-400.0,0.00019452,2]
[360883186,1747098651365,-583.63,0.00019452,2]
[360883187,1747098651374,-400.0,0.00019452,2]
[360883188,1747098651384,-605.02,0.00019452,2]
[360883189,1747098651394,-1302.7,0.00019452,2]
[360883190,1747098651404,-2288.86771131,0.00019452,2]
[360883191,1747098651839,-1715.89228869,0.00019452,2]
[360883192,1747098651850,-400.0,0.00019452,2]
[360883193,1747098651861,-2610.37,0.00019452,2]
[360883194,1747098651870,-510.29,0.00019452,2]
[360883195,1747098651879,-440.04,0.00019452,2]
[360883196,1747098651889,-400.0,0.00019452,2]
[360883197,1747098651899,-424.44,0.00019452,2]
[360883198,1747098651909,-400.0,0.00019452,2]
[360883199,1747098651918,-1453.47,0.00019452,2]
[360883200,1747098651927,-400.0,0.00019452,2]
[360883201,1747098651937,-400.0,0.00019452,2]
[360883202,1747098651947,-400.0,0.00019452,2]
[360883203,1747098651956,-400.0,0.00019452,2]
[360883204,1747098651965,-400.0,0.00019452,2]
[360883205,1747098651975,-400.0,0.00019452,2]
[360883206,1747098651984,-306.02758953,0.00019452,2]
[360883207,1747098651993,-444.48,0.00019452,2]
[360883208,1747098652002,-519.74,0.00019452,2]
[360883209,1747098652012,-282.64621863,0.00019452,2]
[360883210,1747098652021,-1096.53,0.00019452,2]
[360883211,1747098652031,-400.0,0.00019452,2]
[360883212,1747098652040,-854.31,0.00019452,2]
[360883213,1747098652050,-400.0,0.00019452,2]
[360883214,1747098652059,-477.28,0.00019452,2]
[360883215,1747098652068,-400.0,0.00019452,2]
[360883216,1747098652077,-400.0,0.00019452,2]
[360883217,1747098652086,-654.74,0.00019452,2]
[360883218,1747098652096,-400.0,0.00019452,2]
[360883219,1747098652109,-400.0,0.00019452,2]
[360883220,1747098652118,-400.0,0.00019452,2]
[360883221,1747098652127,-400.0,0.00019452,2]
[360883222,1747098652136,-1097.02,0.00019452,2]
[360883223,1747098652146,-400.0,0.00019452,2]
[360883224,1747098652154,-454.65,0.00019452,2]
[360883225,1747098652164,-400.0,0.00019452,2]
[360883226,1747098652174,-400.0,0.00019452,2]
[360883227,1747098652183,-400.0,0.00019452,2]
[360883228,1747098652193,-1269.78,0.00019452,2]
[360883229,1747098652203,-400.0,0.00019452,2]
[360883230,1747098652212,-400.0,0.00019452,2]
[360883231,1747098652221,-400.0,0.00019452,2]
[360883232,1747098652231,-400.0,0.00019452,2]
[360883233,1747098652240,-1209.28,0.00019452,2]
[360883234,1747098652249,-400.0,0.00019452,2]
[360883235,1747098652258,-468.61,0.00019452,2]
[360883236,1747098652268,-400.0,0.00019452,2]
[360883237,1747098652278,-438.36,0.00019452,2]
[360883238,1747098652287,-400.0,0.00019452,2]
[360883239,1747098652296,-797.6,0.00019452,2]
[360883240,1747098652305,-520.11,0.00019452,2]
[360883241,1747098652315,-400.0,0.00019452,2]
[360883242,1747098652324,-400.0,0.00019452,2]
[360883243,1747098652333,-400.0,0.00019452,2]
[360883244,1747098652342,-151.0,0.00019452,2]
[360883245,1747098652352,-1303.93,0.00019452,2]
[360883246,1747098652364,-151.0,0.00019452,2]
[360883247,1747098652373,-151.0,0.00019452,2]
[360883248,1747098652383,-302.039964,0.00019452,2]
[360883249,1747098652392,-2508.58,0.00019452,2]
[360883250,1747098652402,-151.0,0.00019452,2]
[360883251,1747098652411,-302.039964,0.00019452,2]
[360883252,1747098652420,-151.0,0.00019452,2]
[360883253,1747098652429,-302.039964,0.00019452,2]
[360883254,1747098652439,-400.0,0.00019452,2]
[360883255,1747098652449,-302.039964,0.00019452,2]
[360883256,1747098652458,-151.0,0.00019452,2]